bitfinex/quotes_ETHUSD_20250823
["timestamp","ask_amount","ask_price","bid_price","bid_amount"]
[1755975544166,0.08738601,4760.0,4759.9,3.482]
[1755975552573,0.08618601,4760.0,4759.9,3.9107]
[1755975552742,0.08618601,4760.0,4759.9,4.2177]
[1755975554177,0.08618601,4760.0,4759.9,3.9107]
[1755975559774,0.08618601,4760.0,4759.9,4.1976]
[1755975560278,0.08618601,4760.0,4759.9,4.1958]
[1755975565608,0.08618601,4760.0,4759.9,3.4802]
[1755975568498,0.08618601,4760.0,4759.9,3.9262]
[1755975569003,0.08618601,4760.0,4759.9,4.2131]
[1755975573312,0.08618601,4760.0,4759.9,6.31398447]
[1755975573613,0.08618601,4760.0,4759.9,4.2131]
[1755975573793,0.08618601,4760.0,4759.9,6.31398447]
[1755975573992,0.08618601,4760.0,4759.9,5.06517973]
[1755975574221,1e-08,4760.0,4759.9,7.2708642]
[1755975578296,1e-08,4760.0,4759.9,6.41878447]
[1755975585137,1e-08,4760.0,4759.9,4.3179]
[1755975591330,1e-08,4760.0,4759.9,6.41878447]
[1755975594911,0.002,4760.1,4760.0,3.99999999]
[1755975595110,0.002,4760.1,4760.0,4.30639999]
[1755975595314,0.002,4760.1,4760.0,4.73869999]
[1755975595746,0.002,4760.1,4760.0,8.09220419]
[1755975596335,0.002,4760.1,4760.0,8.19700419]
[1755975597554,0.00052979,4760.1,4760.0,8.19700419]
[1755975599858,0.00052979,4760.1,4760.0,8.28117319]
[1755975601973,0.00052979,4760.1,4760.0,14.71907317]
[1755975602468,0.00052979,4760.1,4760.0,17.71907317]
[1755975605529,0.00052979,4760.1,4760.0,21.96907317]
[1755975605732,0.00052979,4760.1,4760.0,27.74697315]
[1755975606731,0.00052979,4760.1,4760.0,21.96907317]
[1755975614080,0.00052979,4760.1,4760.0,21.97007317]
[1755975615006,1e-08,4760.2,4760.1,5.7607962]
[1755975615300,1e-08,4760.2,4760.1,12.1223742]
[1755975616008,1e-08,4760.2,4760.1,12.2065282]
[1755975617303,1e-08,4760.2,4760.1,16.4565282]
[1755975620503,0.3109,4761.3,4761.0,6.07439253]
[1755975620700,0.3109,4761.3,4761.1,3.481]
[1755975621005,0.104155,4761.8,4761.2,0.1048]
[1755975621207,0.104155,4761.8,4761.3,3.481]
[1755975621377,0.3046,4761.4,4761.3,5.58126673]
[1755975621790,0.4098,4761.4,4761.3,5.68606673]
[1755975626117,0.3046,4761.4,4761.3,5.68606673]
[1755975630919,0.3066,4761.4,4761.3,5.68606673]
[1755975632119,0.78227667,4762.2,4762.0,3.56214498]
[1755975632789,0.631157,4762.1,4762.0,3.56214498]
[1755975641224,6.40905698,4762.1,4762.0,3.56214498]
[1755975641420,9.86273307,4762.1,4762.0,3.56214498]
[1755975643923,4.08483309,4762.1,4762.0,3.56214498]
[1755975645513,0.52268811,4762.1,4761.7,3.5858]
[1755975645705,1.02149887,4762.1,4761.8,0.4337]
[1755975645904,1.65267887,4762.1,4761.8,0.4337]
[1755975646512,1.65267887,4762.1,4761.1,2.10035267]
[1755975646513,0.02,4762.8,4762.1,2.0999139]
[1755975646713,0.02,4762.8,4762.2,3.9147]
[1755975646913,0.02,4762.8,4762.7,0.1048]
[1755975647151,0.02,4762.8,4762.7,3.5858]
[1755975647822,0.02,4762.8,4762.7,4.0195]
[1755975648023,0.02,4762.8,4762.7,4.3104]
[1755975650350,0.02,4762.8,4762.7,4.97111392]
[1755975650515,0.02,4762.8,4762.7,7.70174427]
[1755975654520,7.42169998,4763.9,4762.8,2.09956235]
[1755975654725,7.42169998,4763.9,4762.9,6.02695063]
[1755975655047,7.42169998,4763.9,4763.0,0.4474]
[1755975655354,0.32849516,4763.7,4763.2,0.1048]
[1755975655553,0.32849516,4763.7,4763.3,3.48]
[1755975655720,0.32849516,4763.7,4763.3,3.9274]
[1755975659446,5.88269998,4763.9,4763.3,3.9274]
[1755975660160,0.1048,4763.9,4763.3,3.9274]
[1755975660339,5.88269998,4763.9,4763.3,3.9274]
[1755975662743,0.32847401,4763.8,4763.3,3.9274]
[1755975662943,0.32847401,4763.8,4763.3,3.48]
[1755975663145,0.32847401,4763.8,4763.4,0.4474]
[1755975663340,1.01268961,4763.8,4763.4,0.4474]
[1755975664344,1.01268961,4763.8,4763.3,3.48]
[1755975664541,1.01268961,4763.8,4763.4,0.4474]
[1755975664782,1.01268961,4763.8,4763.5,0.4474]
[1755975665270,1.01468961,4763.8,4763.5,0.4474]
[1755975665575,1.01468961,4763.8,4763.6,0.4474]
[1755975669887,1.01468961,4763.8,4763.7,0.4474]
[1755975670799,1.01468961,4763.8,4763.7,0.7571]
[1755975670800,0.33047401,4763.8,4763.7,0.7571]
[1755975672991,0.002,4763.8,4763.7,0.7571]
[1755975674689,0.002,4763.8,4763.7,4.2361]
[1755975675960,0.002,4763.8,4763.7,6.33530859]
[1755975676164,0.002,4763.8,4763.7,7.30860805]
[1755975678093,0.002,4763.8,4763.7,7.93942105]
[1755975679561,0.002,4763.8,4763.7,7.30860805]
[1755975682722,0.002,4763.8,4763.7,7.39271605]
[1755975691495,0.002,4763.8,4763.7,15.30271605]
[1755975693624,0.002,4763.8,4763.7,15.19791605]
[1755975694321,0.002,4763.8,4763.7,15.30271605]
[1755975695836,0.002,4763.8,4763.7,15.30371605]
[1755975698248,0.002,4763.8,4763.7,10.71631605]
[1755975698540,0.002,4763.8,4763.7,13.88661605]
[1755975700740,0.002,4763.8,4763.7,10.88661605]
[1755975700949,0.002,4763.8,4763.7,10.80250805]
[1755975701310,0.002,4763.8,4763.7,6.55250805]
[1755975701512,0.002,4763.8,4763.7,6.99620805]
[1755975701813,0.002,4763.8,4763.7,7.31080805]
[1755975702134,0.002,4763.8,4763.7,6.55250805]
[1755975702819,0.0103,4763.8,4763.7,6.55250805]
[1755975705018,0.002,4763.8,4763.7,7.31080805]
[1755975706643,0.002,4763.8,4763.7,7.65921505]
[1755975709017,0.002,4763.8,4763.7,7.34461505]
[1755975709515,0.002,4763.8,4763.7,7.65401505]
[1755975712041,0.002,4763.8,4763.7,11.90401505]
[1755975713250,0.002,4763.8,4763.7,11.59461505]
[1755975713627,0.002,4763.8,4763.7,11.15091505]
[1755975714017,0.002,4763.8,4763.7,10.80250805]
[1755975714671,0.002,4763.8,4763.7,8.70329946]
[1755975714821,0.002,4763.8,4763.7,7.8348]
[1755975714822,0.0103,4763.8,4763.7,7.8348]
[1755975715754,0.0103,4763.8,4763.7,3.5848]
[1755975715921,0.0103,4763.8,4763.7,5.68400859]
[1755975716322,0.0103,4763.8,4763.7,3.5848]
[1755975720640,0.0103,4763.8,4763.7,3.48]
[1755975724728,0.0103,4763.8,4763.6,0.001]
[1755975730479,0.002,4763.8,4763.6,0.001]
[1755975730778,0.002,4763.8,4763.7,2.86650859]
[1755975731283,0.002,4763.8,4763.7,2.97130859]
[1755975731841,0.002,4763.8,4763.7,6.45630859]
[1755975737081,0.002,4763.8,4763.7,9.45630859]
[1755975741285,0.002,4763.8,4763.7,9.54040959]
[1755975741463,0.002,4763.8,4763.7,11.62233127]
[1755975742062,0.002,4763.8,4763.7,19.32646712]
[1755975742372,0.002,4763.8,4763.7,23.57646712]
[1755975746605,0.002,4763.8,4763.7,16.53233127]
[1755975749798,0.002,4763.8,4763.7,12.28233127]
[1755975750500,0.002,4763.8,4763.7,11.62233127]
[1755975751001,0.002,4763.8,4763.7,11.31293127]
[1755975751216,0.002,4763.8,4763.7,10.85503127]
[1755975751415,0.002,4763.8,4763.7,5.68900859]
[1755975751416,0.0103,4763.8,4763.7,5.68900859]
[1755975751618,0.0103,4763.8,4763.7,3.5888]
[1755975752409,0.0155,4763.8,4763.7,3.5888]
[1755975752710,0.0103,4763.8,4763.7,3.5888]
[1755975754076,0.0155,4763.8,4763.7,3.5888]
[1755975754792,0.0103,4763.8,4763.7,3.5888]
[1755975762030,0.0155,4763.8,4763.7,3.484]
[1755975762234,2.09920859,4763.7,4763.6,0.001]
[1755975762435,0.55035878,4763.7,4763.6,0.001]
[1755975762637,0.1183,4763.7,4763.6,0.001]
[1755975762932,2.54598437,4763.7,4763.6,0.001]
[1755975763223,2.63012237,4763.7,4763.6,0.001]
[1755975766503,5.63012237,4763.7,4763.6,0.001]
[1755975766905,6.74229553,4763.7,4763.6,0.001]
[1755975767108,9.77612237,4763.7,4763.6,0.001]
[1755975767315,10.22805699,4763.7,4763.6,0.001]
[1755975767509,9.77612237,4763.7,4763.6,0.001]
[1755975767728,10.22805866,4763.7,4763.6,0.001]
[1755975767925,9.89958288,4763.7,4763.6,0.001]
[1755975768128,10.09567431,4763.7,4763.6,0.001]
[1755975770431,9.89958288,4763.7,4763.6,0.001]
[1755975771134,10.38512229,4763.7,4763.6,0.001]
[1755975774234,10.22812309,4763.7,4763.6,0.001]
[1755975778948,10.22292309,4763.7,4763.6,0.001]
[1755975779539,10.41882107,4763.7,4763.6,0.001]
[1755975780921,10.09028086,4763.7,4763.6,0.001]
[1755975781517,10.09044142,4763.7,4763.6,0.001]
[1755975782034,9.89438288,4763.7,4763.6,0.001]
[1755975782240,10.09044131,4763.7,4763.6,0.001]
[1755975784245,10.41896263,4763.7,4763.6,0.001]
[1755975786726,16.79379848,4763.7,4763.6,0.7631]
[1755975787130,16.79379848,4763.7,4763.6,0.4752]
[1755975788061,16.46527716,4763.7,4763.6,0.4752]
[1755975788244,17.03192273,4763.7,4763.6,0.4752]
[1755975789045,9.98778688,4763.7,4763.6,0.7631]
[1755975789248,17.03192273,4763.7,4763.6,0.7631]
[1755975789438,16.47027716,4763.7,4763.6,0.7631]
[1755975790158,17.19537183,4763.7,4763.6,0.7631]
[1755975790660,6.99278688,4763.7,4763.6,0.7631]
[1755975790840,2.74008288,4763.7,4763.6,0.7631]
[1755975791029,6.55857481,4763.7,4763.6,0.7631]
[1755975792458,3.06857481,4763.7,4763.6,0.7631]
[1755975792661,6.55857481,4763.7,4763.6,0.7631]
[1755975793157,3.06857481,4763.7,4763.6,0.7631]
[1755975793361,6.55857481,4763.7,4763.6,0.7631]
[1755975793862,4.45936622,4763.7,4763.6,0.7631]
[1755975797668,6.55857481,4763.7,4763.6,0.7631]
[1755975798048,13.60271066,4763.7,4763.6,0.001]
[1755975798876,13.60271066,4763.7,4763.6,0.4471]
[1755975799468,13.27421873,4763.7,4763.6,0.4471]
[1755975799673,13.27421873,4763.7,4763.6,0.7468]
[1755975800037,13.28251873,4763.7,4763.6,0.001]
[1755975800238,13.47926494,4763.7,4763.6,0.001]
[1755975801569,13.470961,4763.7,4763.6,0.001]
[1755975802846,13.79945408,4763.7,4763.6,0.001]
[1755975803046,13.60271181,4763.7,4763.6,0.7468]
[1755975806383,4.45736737,4763.7,4763.6,0.7468]
[1755975808343,4.45736737,4763.7,4763.6,0.4471]
[1755975808585,4.45736737,4763.7,4763.6,0.7468]
[1755975809187,6.55657596,4763.7,4763.6,0.7468]
[1755975810279,6.22808288,4763.7,4763.6,0.7468]
[1755975812272,6.42490181,4763.7,4763.6,0.7468]
[1755975813506,2.93690181,4763.7,4763.6,0.7468]
[1755975813683,6.42490181,4763.7,4763.6,0.7468]
[1755975813858,6.75339336,4763.7,4763.6,0.7468]
[1755975815369,4.65418477,4763.7,4763.6,0.7468]
[1755975815877,4.45736584,4763.7,4763.6,0.7468]
[1755975816185,6.75346309,4763.7,4763.6,0.7468]
[1755975816386,4.6542545,4763.7,4763.6,0.7468]
[1755975816891,4.65428928,4763.7,4763.6,0.7468]
[1755975817389,4.65328928,4763.7,4763.6,0.7468]
[1755975818598,4.32479773,4763.7,4763.6,0.7468]
[1755975818757,6.42400632,4763.7,4763.6,0.7468]
[1755975819855,2.93700632,4763.7,4763.6,0.7468]
[1755975820057,4.32479773,4763.7,4763.6,0.7468]
[1755975820558,6.42400632,4763.7,4763.6,0.7468]
[1755975821590,6.42420015,4763.7,4763.6,0.7468]
[1755975821790,6.75268867,4763.7,4763.6,0.7468]
[1755975827964,6.75272603,4763.7,4763.6,0.7468]
[1755975831399,6.75274409,4763.7,4763.6,0.7468]
[1755975831897,6.75275068,4763.7,4763.6,0.7468]
[1755975832679,4.65354209,4763.7,4763.6,0.7468]
[1755975832911,6.75275068,4763.7,4763.6,0.7468]
[1755975834906,7.31939625,4763.7,4763.6,0.7468]
[1755975835513,6.75275068,4763.7,4763.6,0.7468]
[1755975836198,3.26575068,4763.7,4763.6,0.7468]
[1755975836380,6.75075068,4763.7,4763.6,0.7468]
[1755975837702,4.65154209,4763.7,4763.6,0.7468]
[1755975837903,6.75075068,4763.7,4763.6,0.7468]
[1755975839516,6.42226216,4763.7,4763.6,0.7468]
[1755975841027,6.22508288,4763.7,4763.6,0.7468]
[1755975841218,4.32307124,4763.7,4763.6,0.7468]
[1755975841416,6.42227983,4763.7,4763.6,0.7468]
[1755975841715,6.42228146,4763.7,4763.6,0.7468]
[1755975842618,4.32307287,4763.7,4763.6,0.7468]
[1755975842817,4.65155649,4763.7,4763.6,0.7468]
[1755975843116,6.75076508,4763.7,4763.6,0.7468]
[1755975844790,7.31741065,4763.7,4763.6,0.4471]
[1755975845404,5.21820206,4763.7,4763.6,0.7384]
[1755975845820,7.31741065,4763.7,4763.6,0.7384]
[1755975847424,5.21820206,4763.7,4763.6,0.7384]
[1755975850028,5.02100348,4763.7,4763.6,0.7384]
[1755975850211,5.21821234,4763.7,4763.6,0.7384]
[1755975850622,5.2182127,4763.7,4763.6,0.7384]
[1755975850993,4.88972896,4763.7,4763.6,0.7384]
[1755975853194,4.32308339,4763.7,4763.6,0.7384]
[1755975853621,0.83808339,4763.7,4763.6,0.7384]
[1755975853823,0.084138,4763.7,4763.6,0.7384]
[1755975873356,0.084138,4763.7,4763.6,1.03275657]
[1755975876456,0.084138,4763.7,4763.6,3.13200923]
[1755975876655,0.002,4763.8,4763.7,2.09920859]
[1755975876855,0.002,4763.8,4763.7,2.84440859]
[1755975877851,0.002,4763.8,4763.7,6.32640859]
[1755975878059,0.002,4763.8,4763.7,7.78612624]
[1755975878358,0.002,4763.8,4763.7,7.87226424]
[1755975880355,0.002,4763.8,4763.7,13.64360016]
[1755975881132,0.002,4763.8,4763.7,19.02240016]
[1755975882352,0.002,4763.8,4763.7,20.29409885]
[1755975886163,0.002,4763.8,4763.7,24.54409885]
[1755975886570,1e-08,4763.8,4763.7,24.54409885]
[1755975894470,1e-08,4763.8,4763.7,16.84106424]
[1755975894940,1e-08,4763.8,4763.7,17.50106424]
[1755975895140,1e-08,4763.8,4763.7,16.09586424]
[1755975895953,1e-08,4763.8,4763.7,16.54646424]
[1755975896475,1e-08,4763.8,4763.7,16.83456424]
[1755975897656,1e-08,4763.8,4763.7,16.54646424]
[1755975898268,1e-08,4763.8,4763.7,12.29646424]
[1755975898872,1e-08,4763.8,4763.7,11.84586424]
[1755975900076,1e-08,4763.8,4763.7,12.29646424]
[1755975900443,1e-08,4763.8,4763.7,12.58456424]
[1755975905084,1e-08,4763.8,4763.7,13.24456424]
[1755975907396,1e-08,4763.8,4763.7,17.49456424]
[1755975913770,1e-08,4763.8,4763.7,16.09586424]
[1755975913982,0.00830001,4763.8,4763.7,16.09586424]
[1755975914182,0.00830001,4763.8,4763.7,11.84586424]
[1755975914504,0.00830001,4763.8,4763.7,10.38614659]
[1755975915378,1e-08,4763.8,4763.7,10.38614659]
[1755975915578,1e-08,4763.8,4763.7,10.83674659]
[1755975916999,1e-08,4763.8,4763.7,10.38614659]
[1755975917205,1e-08,4763.8,4763.7,10.30000859]
[1755975917406,1e-08,4763.8,4763.7,11.61453264]
[1755975919212,1e-08,4763.8,4763.7,12.06453264]
[1755975922111,1e-08,4763.8,4763.7,12.38023264]
[1755975924096,0.00830001,4763.8,4763.7,11.61453264]
[1755975925002,1e-08,4763.8,4763.7,11.61453264]
[1755975926317,1e-08,4763.8,4763.7,12.06453264]
[1755975927881,1e-08,4763.8,4763.7,12.38023264]
[1755975930717,1e-08,4763.8,4763.7,19.97846725]
[1755975930919,1e-08,4763.8,4763.7,24.33326725]
[1755975937118,1e-08,4763.8,4763.7,17.29023264]
[1755975945830,0.00830001,4763.8,4763.7,13.76532405]
[1755975946002,0.00830001,4763.8,4763.7,15.86453264]
[1755975946914,1e-08,4763.8,4763.7,15.86453264]
[1755975947416,1e-08,4763.8,4763.7,16.31453264]
[1755975948654,1e-08,4763.8,4763.7,12.06453264]
[1755975949839,1e-08,4763.8,4763.7,12.40053264]
[1755975954639,1e-08,4763.8,4763.7,16.65053264]
[1755975956039,1e-08,4763.8,4763.7,15.86453264]
[1755975958642,1e-08,4763.8,4763.7,16.33483264]
[1755975962841,0.01350001,4763.8,4763.7,0.1048]
[1755975963217,0.11830001,4763.8,4763.7,0.1048]
[1755975963682,0.11830001,4763.8,4763.2,0.001]
[1755975963683,5.88558442,4763.8,4763.2,0.001]
[1755975963938,5.76728441,4763.3,4763.2,0.001]
[1755975964138,6.62782814,4763.3,4763.2,0.001]
[1755975964342,6.63302814,4763.3,4763.2,0.001]
[1755975964542,8.83721302,4763.3,4763.2,0.001]
[1755975964731,6.84262814,4763.3,4763.2,0.001]
[1755975965116,8.94201302,4763.3,4763.2,0.001]
[1755975965316,9.27049973,4763.3,4763.2,0.001]
[1755975966016,7.17111485,4763.3,4763.2,0.001]
[1755975966416,3.50321532,4763.3,4763.2,0.001]
[1755975967850,3.17472861,4763.3,4763.2,0.001]
[1755975968145,1.07534373,4763.3,4763.2,0.001]
[1755975968346,3.17472861,4763.3,4763.2,0.001]
[1755975968547,1.07534373,4763.3,4763.2,0.001]
[1755975970019,1.07014373,4763.3,4763.2,0.001]
[1755975971220,1.06184373,4763.3,4763.2,0.001]
[1755975971421,0.1048,4763.3,4763.2,0.7808]
[1755975971622,1e-08,4763.8,4763.2,0.7808]
[1755975971834,0.084124,4763.5,4763.2,4.2718]
[1755975972057,0.084124,4763.5,4763.3,0.4703]
[1755975972254,0.084124,4763.5,4763.4,0.1048]
[1755975972950,0.084124,4763.5,4763.4,0.8846]
[1755975973153,1e-08,4763.8,4763.4,0.8846]
[1755975973357,1e-08,4763.8,4763.5,0.4703]
[1755975973531,1e-08,4763.8,4763.7,0.1048]
[1755975974537,1e-08,4763.8,4763.7,0.4143]
[1755975974850,1e-08,4763.8,4763.7,0.8846]
[1755975975258,1e-08,4763.8,4763.7,4.3756]
[1755975980270,1e-08,4763.8,4763.7,3.5958]
[1755975982665,1e-08,4763.8,4763.7,4.054]
[1755975983480,1e-08,4763.8,4763.7,3.5958]
[1755975987771,1e-08,4763.8,4763.7,4.3451]
[1755975995077,1e-08,4763.8,4763.7,4.2403]
[1755975995383,1e-08,4763.8,4763.7,3.5958]
[1755975995675,0.00830001,4763.8,4763.7,3.5958]
[1755975996657,1e-08,4763.8,4763.7,3.5958]
[1755975996858,1e-08,4763.8,4763.7,4.054]
[1755975998714,0.00830001,4763.8,4763.7,3.5958]
[1755975999049,1e-08,4763.8,4763.7,4.3451]
[1755976000065,1e-08,4763.8,4763.7,4.054]
[1755976001060,0.00830001,4763.8,4763.7,3.5958]
[1755976002182,1e-08,4763.8,4763.7,4.054]
[1755976002682,1e-08,4763.8,4763.7,4.3451]
[1755976005776,1e-08,4763.8,4763.7,6.44430859]
[1755976006990,1e-08,4763.8,4763.7,4.3451]
[1755976007196,1e-08,4763.8,4763.7,6.44430859]
[1755976008898,1e-08,4763.8,4763.7,7.29876772]
[1755976009271,1e-08,4763.8,4763.7,10.29876772]
[1755976012594,1e-08,4763.8,4763.7,10.95876772]
[1755976014079,1e-08,4763.8,4763.7,18.00958543]
[1755976016099,1e-08,4763.8,4763.7,10.95876772]
[1755976016402,1e-08,4763.8,4763.7,10.95776772]
[1755976019613,1e-08,4763.8,4763.7,15.20776772]
[1755976024209,1e-08,4763.9,4763.8,5.75916453]
[1755976024410,1e-08,4763.9,4763.8,12.92134253]
[1755976024983,1e-08,4763.9,4763.8,13.00542253]
[1755976040108,1e-08,4763.9,4763.8,16.59722253]
[1755976046934,1e-08,4763.9,4763.8,17.44092253]
[1755976047113,0.00830001,4763.9,4763.8,16.78092253]
[1755976047314,0.00830001,4763.9,4763.8,13.78092253]
[1755976047541,0.00830001,4763.9,4763.8,16.78092253]
[1755976048638,0.01350001,4763.9,4763.8,14.55496453]
[1755976049142,0.00830001,4763.9,4763.8,14.55496453]
[1755976050310,0.01350001,4763.9,4763.8,14.55496453]
[1755976050836,0.00830001,4763.9,4763.8,14.55496453]
[1755976052118,0.00830001,4763.9,4763.8,10.30496453]
[1755976056641,0.00830001,4763.9,4763.8,10.30596453]
[1755976056818,0.00830001,4763.9,4763.8,7.30596453]
[1755976058654,1e-08,4763.9,4763.8,13.0867857]
[1755976059021,1e-08,4763.9,4763.8,13.1708737]
[1755976060964,1e-08,4763.9,4763.8,13.43926212]
[1755976061168,1e-08,4763.9,4763.8,13.1708737]
[1755976063169,1e-08,4764.4,4764.3,12.80976194]
[1755976063336,1e-08,4764.4,4764.3,18.08863929]
[1755976063532,1e-08,4764.4,4764.3,22.74973929]
[1755976063867,1e-08,4764.4,4764.3,23.28271129]
[1755976065566,1e-08,4764.4,4764.3,19.03271129]
[1755976065766,1e-08,4764.4,4764.3,19.30109971]
[1755976066950,0.02,4765.8,4765.6,2.75837166]
[1755976067154,0.02,4765.8,4765.6,11.34605284]
[1755976067325,0.02,4765.8,4765.6,11.45085284]
[1755976067757,0.02,4765.8,4765.6,11.53491384]
[1755976069246,0.02,4765.8,4765.6,11.97711384]
[1755976069762,0.02,4765.8,4765.6,11.85071384]
[1755976069946,0.02,4765.8,4765.6,12.29291384]
[1755976072662,0.00973671,4765.7,4765.6,11.53491384]
[1755976072857,0.00143671,4765.7,4765.6,11.53491384]
[1755976073045,0.00143671,4765.7,4765.6,12.29291384]
[1755976073940,0.00143671,4765.7,4765.6,11.97711384]
[1755976074256,0.00973671,4765.7,4765.6,11.53491384]
[1755976074456,0.00143671,4765.7,4765.6,11.53491384]
[1755976074826,0.00143671,4765.7,4765.6,11.97711384]
[1755976075328,0.00343671,4765.7,4765.6,11.97711384]
[1755976075745,0.00343671,4765.7,4765.6,12.29291384]
[1755976076060,0.00343671,4765.7,4765.6,16.54291384]
[1755976078158,0.00343671,4765.7,4765.6,16.22711384]
[1755976079352,0.01173671,4765.7,4765.6,10.87491384]
[1755976080261,0.00343671,4765.7,4765.6,10.87491384]
[1755976080462,0.00343671,4765.7,4765.6,11.31711384]
[1755976080661,0.00343671,4765.7,4765.6,11.63291384]
[1755976082572,0.00343671,4765.7,4765.6,12.29291384]
[1755976084641,0.00343671,4765.7,4765.6,16.54291384]
[1755976085342,0.01173671,4765.7,4765.6,12.29691384]
[1755976085565,0.01173671,4765.7,4765.6,15.78491384]
[1755976087174,0.00343671,4765.7,4765.6,15.78491384]
[1755976087472,0.00343671,4765.7,4765.6,16.22711384]
[1755976088861,0.00343671,4765.7,4765.6,16.54291384]
[1755976094084,0.01173671,4765.7,4765.6,15.78491384]
[1755976094781,0.00343671,4765.7,4765.6,15.78491384]
[1755976094965,0.00343671,4765.7,4765.6,16.22711384]
[1755976095367,0.00343671,4765.7,4765.6,16.10071384]
[1755976095565,0.00343671,4765.7,4765.6,16.54291384]
[1755976095985,0.01173671,4765.7,4765.6,11.63691384]
[1755976096160,0.01173671,4765.7,4765.6,14.55417166]
[1755976096354,0.01173671,4765.7,4765.6,10.30417166]
[1755976096581,0.01693671,4765.7,4765.6,7.30417166]
[1755976096883,0.01173671,4765.7,4765.6,10.30417166]
[1755976101187,0.00343671,4765.7,4765.6,10.30417166]
[1755976101583,0.00343671,4765.7,4765.6,10.74767166]
[1755976101967,0.00343671,4765.7,4765.6,11.04027166]
[1755976102190,0.00343671,4765.7,4765.6,12.35414448]
[1755976109107,0.00343671,4765.7,4765.6,11.61804448]
[1755976109400,0.01173671,4765.7,4765.6,10.30417166]
[1755976110270,0.00343671,4765.7,4765.6,10.30417166]
[1755976111903,0.01173671,4765.7,4765.6,10.30417166]
[1755976112878,0.00343671,4765.7,4765.6,10.30417166]
[1755976113109,0.00343671,4765.7,4765.6,10.74767166]
[1755976115615,0.00343671,4765.7,4765.6,12.74988257]
[1755976118389,0.00343671,4765.7,4765.6,10.79027166]
[1755976122437,0.00343671,4765.7,4765.6,10.05417166]
[1755976122635,0.01173671,4765.7,4765.6,10.05417166]
[1755976123025,0.01693671,4765.7,4765.6,5.2058]
[1755976124235,0.01173671,4765.7,4765.6,7.30417166]
[1755976124441,0.01173671,4765.7,4765.6,5.2058]
[1755976126128,0.01173671,4765.7,4765.6,7.30417166]
[1755976126643,0.01173671,4765.7,4765.6,5.2058]
[1755976129384,0.01173671,4765.7,4765.6,7.30417166]
[1755976129872,0.01173671,4765.7,4765.6,5.2058]
[1755976130441,0.01173671,4765.7,4765.6,7.30417166]
[1755976130657,0.01173671,4765.7,4765.6,5.2058]
[1755976131943,0.01173671,4765.7,4765.6,7.30417166]
[1755976133540,0.01173671,4765.7,4765.6,5.2058]
[1755976133953,0.01173671,4765.7,4765.6,7.30417166]
[1755976134155,0.01173671,4765.7,4765.6,0.1048]
[1755976134444,0.01173671,4765.7,4765.6,3.5908]
[1755976135846,0.01173671,4765.7,4765.6,5.68917166]
[1755976136579,0.00343671,4765.7,4765.6,6.15987166]
[1755976137666,0.00343671,4765.7,4765.6,6.47467166]
[1755976137851,0.00343671,4765.7,4765.6,6.15987166]
[1755976140195,0.00343671,4765.7,4765.6,6.47467166]
[1755976141159,0.00343671,4765.7,4765.6,6.15987166]
[1755976141356,0.00343671,4765.7,4765.6,4.1439]
[1755976141660,0.00343671,4765.7,4765.6,6.24227166]
[1755976141855,0.00343671,4765.7,4765.6,6.55707166]
[1755976147475,0.00343671,4765.7,4765.6,6.45227166]
[1755976147670,0.00343671,4765.7,4765.6,7.57354352]
[1755976163403,0.00343671,4765.7,4765.6,11.23354352]
[1755976164320,0.00343671,4765.7,4765.6,11.31760552]
[1755976182410,0.00343671,4765.7,4765.6,21.32858339]
[1755976186432,0.00343671,4765.7,4765.6,15.56760552]
[1755976190533,0.00343671,4765.7,4765.6,15.46280552]
[1755976190737,0.00343671,4765.7,4765.6,15.56760552]
[1755976194555,0.00343671,4765.7,4765.6,10.53210552]
[1755976194750,0.01173671,4765.7,4765.6,3.271262]
[1755976195051,0.01693671,4765.7,4765.6,3.6722]
[1755976195717,0.64762071,4765.7,4765.6,3.5674]
[1755976196118,0.93468272,4765.7,4765.6,3.5674]
[1755976196319,0.64242071,4765.7,4765.6,3.6722]
[1755976199366,0.01173671,4765.7,4765.6,3.6722]
[1755976205355,0.00343671,4765.7,4765.6,6.40857166]
[1755976205561,0.00343671,4765.7,4765.6,6.51337166]
[1755976208492,0.00343671,4765.7,4765.6,4.415]
[1755976208693,0.01173671,4765.7,4765.6,3.6722]
[1755976209310,0.05541771,4766.2,4765.6,3.5988]
[1755976209468,2.42623126,4766.6,4765.6,3.5988]
[1755976209669,0.106081,4765.9,4765.6,3.5988]
[1755976209870,0.106081,4765.9,4765.6,3.494]
[1755976210086,0.106081,4765.9,4765.8,0.1048]
[1755976210290,0.106081,4765.9,4765.8,3.5998]
[1755976212401,2.20432057,4765.9,4764.8,0.021]
[1755976212581,2.30912057,4765.9,4765.2,0.1048]
[1755976212983,2.09830072,4765.8,4765.2,0.1048]
[1755976213699,0.1048,4765.9,4765.2,0.1048]
[1755976213700,2.72905268,4765.7,4765.2,0.1048]
[1755976214079,0.630707,4765.7,4765.2,0.1048]
[1755976215685,0.32833386,4765.6,4765.2,0.1048]
[1755976215885,0.10638409,4765.5,4765.2,0.1048]
[1755976216288,0.630707,4765.4,4765.2,0.1048]
[1755976217510,0.32833386,4765.6,4765.2,0.1048]
[1755976218609,0.1048,4765.9,4765.2,0.1048]
[1755976221001,0.1048,4765.9,4765.2,0.5474]
[1755976221914,0.32832925,4765.8,4765.2,0.5474]
[1755976223233,0.25312824,4765.7,4765.2,0.5474]
[1755976223440,0.32832925,4765.8,4765.2,0.5474]
[1755976230380,0.1048,4765.9,4765.2,0.5474]
[1755976234315,0.32833272,4765.8,4765.2,0.5474]
[1755976234553,0.32833272,4765.8,4765.2,0.1048]
[1755976234946,0.32833272,4765.8,4765.2,0.5474]
[1755976235255,0.46244682,4765.8,4765.2,0.5474]
[1755976237995,0.1341141,4765.8,4765.2,0.5474]
[1755976238886,0.1341141,4765.8,4765.7,0.2967]
[1755976239473,0.1341141,4765.8,4765.7,0.7393]
[1755976246584,0.1341141,4765.8,4765.7,0.4426]
[1755976247190,0.1341141,4765.8,4765.7,0.7393]
[1755976247572,0.4331228,4765.9,4765.7,0.7393]
[1755976247766,0.63019535,4765.9,4765.8,0.4426]
[1755976248490,0.63019535,4765.9,4765.6,0.4426]